[Event "Late-Titled-Tuesday-Blitz-March-12-2024"]
[Site "Chess.com"]
[Date "2024.03.12"]
[Round "10"]
[White "David_ATM"]
[Black "goldihouse"]
[Result "0-1"]
[WhiteElo "2378"]
[BlackElo "2632"]
[TimeControl "180+1"]
[EndTime "15:54:17 PDT"]
[Termination "goldihouse won by checkmate"]

1. e4 {[%clk 0:03:00.9]} 1... e6 {[%clk 0:02:59.9]} 2. d4 {[%clk 0:03:00.9]}
2... d5 {[%clk 0:03:00.8]} 3. exd5 {[%clk 0:03:01.7]} 3... exd5 {[%clk
0:03:00.9]} 4. Bd3 {[%clk 0:03:02.4]} 4... c5 {[%clk 0:03:00.9]} 5. c3 {[%clk
0:03:02.5]} 5... Nf6 {[%clk 0:03:00.6]} 6. Nf3 {[%clk 0:03:00.6]} 6... Nc6
{[%clk 0:02:58.6]} 7. O-O {[%clk 0:03:00.2]} 7... c4 {[%clk 0:02:58.4]} 8. Bc2
{[%clk 0:03:00.1]} 8... Be7 {[%clk 0:02:56.3]} 9. Re1 {[%clk 0:02:59.8]} 9...
O-O {[%clk 0:02:56.1]} 10. Bf4 {[%clk 0:02:59.9]} 10... Bg4 {[%clk 0:02:55.5]}
11. h3 {[%clk 0:02:59.7]} 11... Bh5 {[%clk 0:02:55.3]} 12. Nbd2 {[%clk
0:02:59.8]} 12... Re8 {[%clk 0:02:55.2]} 13. Nf1 {[%clk 0:02:59]} 13... Qb6
{[%clk 0:02:53.1]} 14. Rb1 {[%clk 0:02:56.5]} 14... Bg6 {[%clk 0:02:51]} 15. Ng3
{[%clk 0:02:40.7]} 15... Bf8 {[%clk 0:02:45.2]} 16. Ne5 {[%clk 0:02:33.7]} 16...
Rad8 {[%clk 0:02:12.3]} 17. Bxg6 {[%clk 0:02:19.6]} 17... hxg6 {[%clk
0:02:11.9]} 18. Nxc6 {[%clk 0:02:10.7]} 18... Qxc6 {[%clk 0:02:10.1]} 19. Bg5
{[%clk 0:02:11.1]} 19... Bd6 {[%clk 0:02:02.8]} 20. Bxf6 {[%clk 0:02:09.5]}
20... gxf6 {[%clk 0:02:02.8]} 21. Qf3 {[%clk 0:02:08.9]} 21... Kg7 {[%clk
0:02:00.6]} 22. Qg4 {[%clk 0:02:01.3]} 22... Bxg3 {[%clk 0:01:57.3]} 23. Qxg3
{[%clk 0:02:02.2]} 23... Re6 {[%clk 0:01:53.6]} 24. Rxe6 {[%clk 0:01:46]} 24...
Qxe6 {[%clk 0:01:54.5]} 25. Qe3 {[%clk 0:01:43.9]} 25... Qxe3 {[%clk 0:01:44.8]}
26. fxe3 {[%clk 0:01:44.8]} 26... f5 {[%clk 0:01:43.6]} 27. b4 {[%clk
0:01:33.3]} 27... Re8 {[%clk 0:01:41.2]} 28. Kf2 {[%clk 0:01:32.8]} 28... Re4
{[%clk 0:01:41.4]} 29. b5 {[%clk 0:01:25]} 29... f4 {[%clk 0:01:35.4]} 30. exf4
{[%clk 0:01:24.7]} 30... Rxf4+ {[%clk 0:01:36.3]} 31. Ke3 {[%clk 0:01:19.3]}
31... Rf6 {[%clk 0:01:34.5]} 32. a4 {[%clk 0:01:18.1]} 32... g5 {[%clk
0:01:30.5]} 33. a5 {[%clk 0:01:04.7]} 33... Kg6 {[%clk 0:01:23.6]} 34. b6 {[%clk
0:00:30.8]} 34... a6 {[%clk 0:01:23.4]} 35. g3 {[%clk 0:00:17.4]} 35... Kh5
{[%clk 0:01:17.9]} 36. Ke2 {[%clk 0:00:05.3]} 36... Re6+ {[%clk 0:01:14.5]} 37.
Kf3 {[%clk 0:00:05.2]} 37... f5 {[%clk 0:01:12.8]} 38. Rf1 {[%clk 0:00:04.5]}
38... Re4 {[%clk 0:01:10.5]} 39. Rg1 {[%clk 0:00:03.9]} 39... Kg6 {[%clk
0:00:59.4]} 40. g4 {[%clk 0:00:04.1]} 40... f4 {[%clk 0:00:58.5]} 41. Rh1 {[%clk
0:00:02.4]} 41... Re3+ {[%clk 0:00:59.1]} 42. Kf2 {[%clk 0:00:02.6]} 42... Kf6
{[%clk 0:00:31.5]} 43. h4 {[%clk 0:00:03]} 43... gxh4 {[%clk 0:00:28.9]} 44.
Rxh4 {[%clk 0:00:03.9]} 44... Rxc3 {[%clk 0:00:26.8]} 45. Rh7 {[%clk 0:00:03.8]}
45... Kg5 {[%clk 0:00:18.8]} 46. Rxb7 {[%clk 0:00:04.4]} 46... Kxg4 {[%clk
0:00:19.7]} 47. Rg7+ {[%clk 0:00:04.7]} 47... Kf5 {[%clk 0:00:20.2]} 48. Re7
{[%clk 0:00:02.2]} 48... Rc2+ {[%clk 0:00:16.6]} 49. Re2 {[%clk 0:00:02.3]}
49... Rc1 {[%clk 0:00:12.4]} 50. Rb2 {[%clk 0:00:02.5]} 50... c3 {[%clk
0:00:12.6]} 51. Rb3 {[%clk 0:00:03]} 51... c2 {[%clk 0:00:12.7]} 52. b7 {[%clk
0:00:03.6]} 52... Rf1+ {[%clk 0:00:12.7]} 53. Kg2 {[%clk 0:00:03.5]} 53... c1=Q
{[%clk 0:00:13.6]} 54. b8=Q {[%clk 0:00:03.2]} 54... Rg1+ {[%clk 0:00:13.3]} 55.
Kh2 {[%clk 0:00:01.3]} 55... Rh1+ {[%clk 0:00:13]} 56. Kg2 {[%clk 0:00:02.2]}
56... Qg1+ {[%clk 0:00:13.1]} 57. Kf3 {[%clk 0:00:01.4]} 57... Qd1+ {[%clk
0:00:12.2]} 58. Kf2 {[%clk 0:00:01.5]} 58... Rh2# {[%clk 0:00:11]} 0-1

[Event "Late-Titled-Tuesday-Blitz-March-12-2024"]
[Site "Chess.com"]
[Date "2024.03.12"]
[Round "10"]
[White "JaackCamel"]
[Black "ThaBarWa"]
[Result "1-0"]
[WhiteElo "2212"]
[BlackElo "2339"]
[TimeControl "180+1"]
[EndTime "15:54:17 PDT"]
[Termination "JaackCamel won by checkmate"]

1. d4 {[%clk 0:03:00.9]} 1... Nf6 {[%clk 0:02:57.7]} 2. c4 {[%clk 0:02:50.4]}
2... e6 {[%clk 0:02:54.1]} 3. Nc3 {[%clk 0:02:49.3]} 3... Bb4 {[%clk 0:02:49.7]}
4. Qc2 {[%clk 0:02:49.1]} 4... d5 {[%clk 0:02:46.1]} 5. a3 {[%clk 0:02:45.8]}
5... Bxc3+ {[%clk 0:02:42.7]} 6. Qxc3 {[%clk 0:02:45.6]} 6... O-O {[%clk
0:02:41.6]} 7. Nf3 {[%clk 0:02:36.1]} 7... dxc4 {[%clk 0:02:41.6]} 8. Qxc4
{[%clk 0:02:33.5]} 8... b6 {[%clk 0:02:41.9]} 9. Bg5 {[%clk 0:02:28.6]} 9... Ba6
{[%clk 0:02:35.7]} 10. Qa4 {[%clk 0:02:21.8]} 10... Qd7 {[%clk 0:02:32.2]} 11.
Qxd7 {[%clk 0:02:17.1]} 11... Nbxd7 {[%clk 0:02:33.1]} 12. e3 {[%clk 0:02:14.7]}
12... Bxf1 {[%clk 0:02:32.7]} 13. Kxf1 {[%clk 0:02:10.2]} 13... Ne4 {[%clk
0:02:32.5]} 14. Bf4 {[%clk 0:02:05.1]} 14... c5 {[%clk 0:02:25.6]} 15. Ke2
{[%clk 0:01:58.8]} 15... Rac8 {[%clk 0:02:19.7]} 16. dxc5 {[%clk 0:01:34.5]}
16... Rxc5 {[%clk 0:02:02.8]} 17. Rac1 {[%clk 0:01:27.6]} 17... Rfc8 {[%clk
0:02:03.2]} 18. Rxc5 {[%clk 0:01:17.2]} 18... Rxc5 {[%clk 0:02:04.1]} 19. Rd1
{[%clk 0:01:07.1]} 19... Nef6 {[%clk 0:00:36.3]} 20. Be5 {[%clk 0:00:51.3]}
20... h6 {[%clk 0:00:29.6]} 21. Bc3 {[%clk 0:00:47.9]} 21... Nd5 {[%clk
0:00:28.5]} 22. Bd4 {[%clk 0:00:32.8]} 22... Rc2+ {[%clk 0:00:28.2]} 23. Rd2
{[%clk 0:00:29.7]} 23... Rc1 {[%clk 0:00:28.2]} 24. b4 {[%clk 0:00:23.7]} 24...
f6 {[%clk 0:00:23.1]} 25. Bb2 {[%clk 0:00:22.4]} 25... Kf7 {[%clk 0:00:16.8]}
26. g3 {[%clk 0:00:20.5]} 26... Rc7 {[%clk 0:00:08]} 27. h4 {[%clk 0:00:18.9]}
27... Nf8 {[%clk 0:00:03.3]} 28. Nd4 {[%clk 0:00:18.6]} 28... Nc3+ {[%clk
0:00:03]} 29. Bxc3 {[%clk 0:00:17.6]} 29... Rxc3 {[%clk 0:00:03.9]} 30. Nb5
{[%clk 0:00:18]} 30... Rc1 {[%clk 0:00:03.7]} 31. Nxa7 {[%clk 0:00:16.8]} 31...
Ng6 {[%clk 0:00:04.4]} 32. Nc8 {[%clk 0:00:14.6]} 32... b5 {[%clk 0:00:04.4]}
33. Nd6+ {[%clk 0:00:14.5]} 33... Ke7 {[%clk 0:00:05]} 34. Nxb5 {[%clk
0:00:14.5]} 34... Ne5 {[%clk 0:00:05.9]} 35. a4 {[%clk 0:00:12.2]} 35... Nc4
{[%clk 0:00:06]} 36. Rd4 {[%clk 0:00:11.5]} 36... Nb2 {[%clk 0:00:06.1]} 37. a5
{[%clk 0:00:11.1]} 37... Rc2+ {[%clk 0:00:06.2]} 38. Kf3 {[%clk 0:00:10.6]}
38... Rc6 {[%clk 0:00:04.9]} 39. Na3 {[%clk 0:00:08.8]} 39... Rc3 {[%clk
0:00:03.7]} 40. Nb5 {[%clk 0:00:07.2]} 40... Rc6 {[%clk 0:00:04.3]} 41. Na3
{[%clk 0:00:05.7]} 41... Rc3 {[%clk 0:00:03.7]} 42. Nb1 {[%clk 0:00:06.3]} 42...
Rc1 {[%clk 0:00:03.7]} 43. Nd2 {[%clk 0:00:06.4]} 43... Na4 {[%clk 0:00:02.2]}
44. b5 {[%clk 0:00:05.6]} 44... Nc3 {[%clk 0:00:03.1]} 45. b6 {[%clk 0:00:05.1]}
45... Nb5 {[%clk 0:00:03.4]} 46. Rb4 {[%clk 0:00:04.7]} 46... Rc5 {[%clk
0:00:03.8]} 47. Nb3 {[%clk 0:00:03.4]} 47... Nd6 {[%clk 0:00:04.4]} 48. Nxc5
{[%clk 0:00:02.7]} 48... e5 {[%clk 0:00:05.1]} 49. Ne4 {[%clk 0:00:02.5]} 49...
Nf5 {[%clk 0:00:04.8]} 50. Ke2 {[%clk 0:00:01.7]} 50... Nxh4 {[%clk 0:00:05.7]}
51. gxh4 {[%clk 0:00:01.7]} 51... f5 {[%clk 0:00:06.3]} 52. b7 {[%clk
0:00:01.7]} 52... fxe4 {[%clk 0:00:07.2]} 53. b8=Q {[%clk 0:00:01.6]} 53... Ke6
{[%clk 0:00:08.1]} 54. Rb6+ {[%clk 0:00:01.4]} 54... Kf5 {[%clk 0:00:09]} 55.
Qd6 {[%clk 0:00:01.2]} 55... h5 {[%clk 0:00:09.9]} 56. Qf8+ {[%clk 0:00:01.4]}
56... Kg4 {[%clk 0:00:10.8]} 57. Rg6+ {[%clk 0:00:01.6]} 57... Kh3 {[%clk
0:00:11.4]} 58. Qxg7 {[%clk 0:00:02.1]} 58... Kh2 {[%clk 0:00:11]} 59. Rg2+
{[%clk 0:00:02.3]} 59... Kh3 {[%clk 0:00:11.9]} 60. Qg3# {[%clk 0:00:01.9]} 1-0

[Event "Late-Titled-Tuesday-Blitz-March-12-2024"]
[Site "Chess.com"]
[Date "2024.03.12"]
[Round "10"]
[White "Witik"]
[Black "Vladimir_Zakhartsov"]
[Result "1/2-1/2"]
[WhiteElo "2749"]
[BlackElo "2928"]
[TimeControl "180+1"]
[EndTime "15:54:18 PDT"]
[Termination "Game drawn by repetition"]

1. d4 {[%clk 0:02:59.7]} 1... Nf6 {[%clk 0:02:59.4]} 2. Nf3 {[%clk 0:02:58.2]}
2... d5 {[%clk 0:02:58.5]} 3. Bf4 {[%clk 0:02:57]} 3... c5 {[%clk 0:02:58.4]} 4.
e3 {[%clk 0:02:56.9]} 4... Nc6 {[%clk 0:02:58.7]} 5. Nbd2 {[%clk 0:02:57]} 5...
Nh5 {[%clk 0:02:58.9]} 6. Bg5 {[%clk 0:02:43.8]} 6... h6 {[%clk 0:02:50.4]} 7.
Bh4 {[%clk 0:02:42.5]} 7... g5 {[%clk 0:02:48.4]} 8. Ne5 {[%clk 0:02:38.5]} 8...
Nxe5 {[%clk 0:02:35.8]} 9. dxe5 {[%clk 0:02:36.3]} 9... Ng7 {[%clk 0:02:30.8]}
10. Bg3 {[%clk 0:02:33.5]} 10... Nf5 {[%clk 0:02:16.2]} 11. e4 {[%clk
0:02:09.2]} 11... Nxg3 {[%clk 0:02:13.1]} 12. hxg3 {[%clk 0:02:09.3]} 12... Bg7
{[%clk 0:02:12.4]} 13. f4 {[%clk 0:01:46.5]} 13... d4 {[%clk 0:02:11.9]} 14. Bc4
{[%clk 0:01:36]} 14... e6 {[%clk 0:02:07.4]} 15. Qh5 {[%clk 0:01:29.8]} 15...
Qe7 {[%clk 0:01:55.4]} 16. Bb5+ {[%clk 0:01:04.9]} 16... Kd8 {[%clk 0:01:42.4]}
17. a4 {[%clk 0:01:02.4]} 17... Kc7 {[%clk 0:01:34.1]} 18. O-O {[%clk
0:00:59.8]} 18... a6 {[%clk 0:01:30.4]} 19. Bd3 {[%clk 0:00:57.6]} 19... Bd7
{[%clk 0:01:30.6]} 20. Nc4 {[%clk 0:00:39.3]} 20... f6 {[%clk 0:01:28.1]} 21.
exf6 {[%clk 0:00:35.4]} 21... Bxf6 {[%clk 0:01:24.5]} 22. e5 {[%clk 0:00:35]}
22... Bg7 {[%clk 0:01:24.6]} 23. Be4 {[%clk 0:00:26.4]} 23... Rab8 {[%clk
0:01:06.8]} 24. Nd6 {[%clk 0:00:17.8]} 24... Bf8 {[%clk 0:00:52.1]} 25. Qf3
{[%clk 0:00:09.9]} 25... Bc8 {[%clk 0:00:46.1]} 26. a5 {[%clk 0:00:07.4]} 26...
Qg7 {[%clk 0:00:41.3]} 27. Qb3 {[%clk 0:00:07.3]} 27... b5 {[%clk 0:00:35.3]}
28. axb6+ {[%clk 0:00:06.9]} 28... Rxb6 {[%clk 0:00:34.8]} 29. Qc4 {[%clk
0:00:05]} 29... Bxd6 {[%clk 0:00:34]} 30. exd6+ {[%clk 0:00:05.3]} 30... Kxd6
{[%clk 0:00:33.9]} 31. Ra5 {[%clk 0:00:04.3]} 31... Qc7 {[%clk 0:00:33.7]} 32.
Rd1 {[%clk 0:00:04]} 32... Rd8 {[%clk 0:00:28.1]} 33. fxg5 {[%clk 0:00:02.9]}
33... hxg5 {[%clk 0:00:27.2]} 34. c3 {[%clk 0:00:03.5]} 34... e5 {[%clk
0:00:25.1]} 35. Qd5+ {[%clk 0:00:03.3]} 35... Ke7 {[%clk 0:00:24.8]} 36. Qxc5+
{[%clk 0:00:03.8]} 36... Qxc5 {[%clk 0:00:24.3]} 37. Rxc5 {[%clk 0:00:04.7]}
37... dxc3 {[%clk 0:00:20.1]} 38. Rxd8 {[%clk 0:00:04.4]} 38... Kxd8 {[%clk
0:00:20.5]} 39. bxc3 {[%clk 0:00:04.7]} 39... Rb5 {[%clk 0:00:20.4]} 40. Rxb5
{[%clk 0:00:04.1]} 40... axb5 {[%clk 0:00:20.3]} 41. Kf2 {[%clk 0:00:04.8]}
41... Ke7 {[%clk 0:00:20.2]} 42. Ke3 {[%clk 0:00:05.5]} 42... Kd6 {[%clk
0:00:20.5]} 43. Bd3 {[%clk 0:00:03.4]} 43... Bb7 {[%clk 0:00:20.6]} 44. Bxb5
{[%clk 0:00:03.3]} 44... Bxg2 {[%clk 0:00:20.8]} 45. Bd3 {[%clk 0:00:04]} 45...
Kc5 {[%clk 0:00:20.7]} 46. Be4 {[%clk 0:00:04.1]} 46... Bh3 {[%clk 0:00:20.5]}
47. Bd3 {[%clk 0:00:04.3]} 47... Bg2 {[%clk 0:00:19.4]} 48. Be2 {[%clk
0:00:04.4]} 48... Bd5 {[%clk 0:00:19.1]} 49. Bd3 {[%clk 0:00:04.7]} 49... Bc6
{[%clk 0:00:18.8]} 50. Be2 {[%clk 0:00:05.2]} 50... Bb7 {[%clk 0:00:17.2]} 51.
Bd3 {[%clk 0:00:05.6]} 51... Bc8 {[%clk 0:00:17.1]} 52. Be2 {[%clk 0:00:05.9]}
52... Bd7 {[%clk 0:00:15.6]} 53. Bd3 {[%clk 0:00:06.3]} 53... Kd6 {[%clk
0:00:15.6]} 54. Be2 {[%clk 0:00:06.4]} 54... Bf5 {[%clk 0:00:15.4]} 55. Bd3
{[%clk 0:00:06.1]} 55... Be6 {[%clk 0:00:15.9]} 56. Be2 {[%clk 0:00:06.5]} 56...
Bd5 {[%clk 0:00:16]} 57. Bd3 {[%clk 0:00:07]} 57... Bc6 {[%clk 0:00:16]} 58. Be2
{[%clk 0:00:07.5]} 58... Kc5 {[%clk 0:00:16.2]} 59. Bd3 {[%clk 0:00:07.9]} 59...
Bd5 {[%clk 0:00:15.8]} 60. Be2 {[%clk 0:00:08.2]} 60... Bc6 {[%clk 0:00:14.6]}
61. Bd3 {[%clk 0:00:08.7]} 61... Kb6 {[%clk 0:00:13.4]} 62. Be2 {[%clk
0:00:09.2]} 62... Kc5 {[%clk 0:00:12.9]} 1/2-1/2

[Event "Late-Titled-Tuesday-Blitz-March-12-2024"]
[Site "Chess.com"]
[Date "2024.03.12"]
[Round "10"]
[White "BilodeauA"]
[Black "MikaelyanArman"]
[Result "1-0"]
[WhiteElo "3021"]
[BlackElo "2861"]
[TimeControl "180+1"]
[EndTime "15:54:19 PDT"]
[Termination "BilodeauA won by resignation"]

1. e4 {[%clk 0:03:00.9]} 1... c5 {[%clk 0:02:56.8]} 2. Nf3 {[%clk 0:03:01.1]}
2... Nc6 {[%clk 0:02:57.3]} 3. Nc3 {[%clk 0:03:00.5]} 3... e5 {[%clk 0:02:53.3]}
4. Bc4 {[%clk 0:02:59.8]} 4... Be7 {[%clk 0:02:53.9]} 5. d3 {[%clk 0:02:59.6]}
5... d6 {[%clk 0:02:53.8]} 6. Nd2 {[%clk 0:02:59.7]} 6... Nf6 {[%clk 0:02:49.1]}
7. Nf1 {[%clk 0:03:00.3]} 7... Bg4 {[%clk 0:02:41.7]} 8. Qd2 {[%clk 0:03:00.7]}
8... Be6 {[%clk 0:02:24.5]} 9. Ne3 {[%clk 0:03:01]} 9... O-O {[%clk 0:02:10.4]}
10. O-O {[%clk 0:03:00.7]} 10... a6 {[%clk 0:02:08.7]} 11. a4 {[%clk 0:03:01]}
11... Nb4 {[%clk 0:02:08.7]} 12. b3 {[%clk 0:02:57.6]} 12... d5 {[%clk
0:02:03.3]} 13. exd5 {[%clk 0:02:57.6]} 13... Nfxd5 {[%clk 0:02:03.6]} 14. Ncxd5
{[%clk 0:02:48.6]} 14... Nxd5 {[%clk 0:02:03.7]} 15. Nxd5 {[%clk 0:02:47.2]}
15... Bxd5 {[%clk 0:02:04.6]} 16. Bxd5 {[%clk 0:02:47]} 16... Qxd5 {[%clk
0:02:05.5]} 17. a5 {[%clk 0:02:47.7]} 17... Rad8 {[%clk 0:01:55.4]} 18. Ra4
{[%clk 0:02:44.1]} 18... f5 {[%clk 0:01:52.2]} 19. Qe2 {[%clk 0:02:31.3]} 19...
Bf6 {[%clk 0:01:49]} 20. f3 {[%clk 0:02:30.9]} 20... Rfe8 {[%clk 0:01:48.2]} 21.
Rc4 {[%clk 0:02:14.3]} 21... e4 {[%clk 0:01:34.9]} 22. fxe4 {[%clk 0:02:00.6]}
22... Bd4+ {[%clk 0:01:34.6]} 23. Be3 {[%clk 0:01:49.2]} 23... fxe4 {[%clk
0:01:32.8]} 24. Bxd4 {[%clk 0:01:48.3]} 24... cxd4 {[%clk 0:01:28.3]} 25. Rc7
{[%clk 0:01:15.1]} 25... exd3 {[%clk 0:00:58.4]} 26. Qxd3 {[%clk 0:01:16]} 26...
Rd7 {[%clk 0:00:49.8]} 27. Rxd7 {[%clk 0:01:04.8]} 27... Qxd7 {[%clk 0:00:50.7]}
28. Qc4+ {[%clk 0:01:04.9]} 28... Kh8 {[%clk 0:00:48.3]} 29. Rd1 {[%clk
0:00:58.7]} 29... Qf5 {[%clk 0:00:26]} 30. h3 {[%clk 0:00:49.9]} 30... Qxa5
{[%clk 0:00:24.6]} 31. Qxd4 {[%clk 0:00:35.2]} 31... h6 {[%clk 0:00:21.1]} 32.
b4 {[%clk 0:00:34.4]} 32... Qe5 {[%clk 0:00:19.4]} 33. Qd7 {[%clk 0:00:22.4]}
33... Re7 {[%clk 0:00:16.8]} 34. Qc8+ {[%clk 0:00:22.8]} 34... Kh7 {[%clk
0:00:16]} 35. Rd3 {[%clk 0:00:20.7]} 35... Qe1+ {[%clk 0:00:14.9]} 36. Kh2
{[%clk 0:00:20.9]} 36... Qxb4 {[%clk 0:00:14.6]} 37. Qf5+ {[%clk 0:00:17.2]}
37... g6 {[%clk 0:00:15]} 38. Qf6 {[%clk 0:00:16.3]} 38... Qe4 {[%clk
0:00:13.7]} 39. Rd8 {[%clk 0:00:11.4]} 39... Qe5+ {[%clk 0:00:12]} 40. Qxe5
{[%clk 0:00:11.9]} 40... Rxe5 {[%clk 0:00:12.9]} 41. Rd7+ {[%clk 0:00:12.6]}
41... Kg8 {[%clk 0:00:13.4]} 42. Rxb7 {[%clk 0:00:13.4]} 42... Rc5 {[%clk
0:00:12.7]} 43. Rb2 {[%clk 0:00:04.4]} 43... Kg7 {[%clk 0:00:11]} 44. Kg3 {[%clk
0:00:05.1]} 44... h5 {[%clk 0:00:10.1]} 45. Kf4 {[%clk 0:00:05.6]} 45... Kh6
{[%clk 0:00:08.6]} 46. Ke4 {[%clk 0:00:06.2]} 46... Kg5 {[%clk 0:00:07.1]} 47.
Kd4 {[%clk 0:00:06.7]} 47... Rc8 {[%clk 0:00:06.3]} 48. c4 {[%clk 0:00:07.3]}
48... Kf4 {[%clk 0:00:06.5]} 49. c5 {[%clk 0:00:06.3]} 49... g5 {[%clk
0:00:03.1]} 50. Kd5 {[%clk 0:00:06.1]} 50... Kg3 {[%clk 0:00:02.7]} 51. c6
{[%clk 0:00:06.1]} 51... g4 {[%clk 0:00:02.1]} 52. hxg4 {[%clk 0:00:06.6]} 52...
hxg4 {[%clk 0:00:02.9]} 53. Kd6 {[%clk 0:00:07.1]} 53... a5 {[%clk 0:00:03.1]}
54. c7 {[%clk 0:00:07]} 54... a4 {[%clk 0:00:01.8]} 55. Kd7 {[%clk 0:00:07.3]}
55... a3 {[%clk 0:00:02.5]} 56. Ra2 {[%clk 0:00:07]} 56... Ra8 {[%clk
0:00:02.3]} 57. c8=Q {[%clk 0:00:07.1]} 57... Rxc8 {[%clk 0:00:02.3]} 58. Kxc8
{[%clk 0:00:08]} 58... Kh2 {[%clk 0:00:02.7]} 59. Kd7 {[%clk 0:00:07.9]} 59...
g3 {[%clk 0:00:03.1]} 60. Ke6 {[%clk 0:00:07.8]} 60... Kh1 {[%clk 0:00:03.7]}
61. Kf5 {[%clk 0:00:08.1]} 1-0

[Event "Late-Titled-Tuesday-Blitz-March-12-2024"]
[Site "Chess.com"]
[Date "2024.03.12"]
[Round "10"]
[White "Danito1954"]
[Black "NMJeevanK"]
[Result "1/2-1/2"]
[WhiteElo "2352"]
[BlackElo "2609"]
[TimeControl "180+1"]
[EndTime "15:54:22 PDT"]
[Termination "Game drawn - insufficient material"]

1. e4 {[%clk 0:03:00.9]} 1... d6 {[%clk 0:02:57.8]} 2. d4 {[%clk 0:03:00.6]}
2... Nf6 {[%clk 0:02:57.5]} 3. Nc3 {[%clk 0:03:01.2]} 3... Nbd7 {[%clk
0:02:56.4]} 4. f4 {[%clk 0:03:00.9]} 4... e5 {[%clk 0:02:55.6]} 5. Nf3 {[%clk
0:03:01.6]} 5... exd4 {[%clk 0:02:55.6]} 6. Nxd4 {[%clk 0:03:00.4]} 6... c6
{[%clk 0:02:55.8]} 7. Bd3 {[%clk 0:02:59.9]} 7... Nc5 {[%clk 0:02:54.6]} 8. O-O
{[%clk 0:02:59.5]} 8... Qb6 {[%clk 0:02:51.6]} 9. Be3 {[%clk 0:02:58.3]} 9...
Qxb2 {[%clk 0:02:48.8]} 10. Qd2 {[%clk 0:02:57]} 10... Qb6 {[%clk 0:02:46.4]}
11. Kh1 {[%clk 0:02:53.2]} 11... Be7 {[%clk 0:02:44.7]} 12. e5 {[%clk
0:02:49.9]} 12... dxe5 {[%clk 0:02:39.9]} 13. fxe5 {[%clk 0:02:50.8]} 13... Ng4
{[%clk 0:02:40.3]} 14. Bg1 {[%clk 0:02:47.7]} 14... Qa5 {[%clk 0:02:14.3]} 15.
Rae1 {[%clk 0:02:34.9]} 15... Be6 {[%clk 0:02:04.8]} 16. Nf5 {[%clk 0:02:32.1]}
16... Bf8 {[%clk 0:01:36.8]} 17. Qf4 {[%clk 0:02:21.2]} 17... Nxd3 {[%clk
0:01:28.2]} 18. cxd3 {[%clk 0:02:17.3]} 18... Qxc3 {[%clk 0:01:26.3]} 19. Qxg4
{[%clk 0:02:17.5]} 19... O-O-O {[%clk 0:01:23.1]} 20. Qa4 {[%clk 0:02:13.5]}
20... Bxf5 {[%clk 0:01:13.4]} 21. Qxa7 {[%clk 0:02:10.7]} 21... Qa3 {[%clk
0:01:00.3]} 22. Rxf5 {[%clk 0:02:04.1]} 22... Qxa7 {[%clk 0:00:50.4]} 23. Bxa7
{[%clk 0:02:05]} 23... Bb4 {[%clk 0:00:49.7]} 24. Rb1 {[%clk 0:02:00.6]} 24...
c5 {[%clk 0:00:40.2]} 25. Rc1 {[%clk 0:02:00.1]} 25... Rxd3 {[%clk 0:00:34.9]}
26. Bxc5 {[%clk 0:02:00.2]} 26... Bxc5 {[%clk 0:00:35.8]} 27. Rxc5+ {[%clk
0:02:00.7]} 27... Kb8 {[%clk 0:00:36.1]} 28. h4 {[%clk 0:01:57.6]} 28... Rd7
{[%clk 0:00:34]} 29. a4 {[%clk 0:01:53.5]} 29... g6 {[%clk 0:00:33.6]} 30. Rf6
{[%clk 0:01:49.8]} 30... Re8 {[%clk 0:00:33.6]} 31. Rb6 {[%clk 0:01:47.5]} 31...
Rde7 {[%clk 0:00:28.8]} 32. Rbb5 {[%clk 0:01:44.8]} 32... Rc7 {[%clk 0:00:24.5]}
33. Rd5 {[%clk 0:01:44]} 33... Rc4 {[%clk 0:00:23.5]} 34. Kg1 {[%clk 0:01:39.1]}
34... Re7 {[%clk 0:00:18.2]} 35. h5 {[%clk 0:01:23.2]} 35... gxh5 {[%clk
0:00:16.8]} 36. a5 {[%clk 0:01:21]} 36... Ka7 {[%clk 0:00:17.1]} 37. Rd6 {[%clk
0:01:17.7]} 37... Re4 {[%clk 0:00:16.3]} 38. Rdb6 {[%clk 0:01:17.9]} 38... R4xe5
{[%clk 0:00:15.5]} 39. Rxb7+ {[%clk 0:01:18.3]} 39... Rxb7 {[%clk 0:00:15.9]}
40. Rxe5 {[%clk 0:01:18.8]} 40... Ka6 {[%clk 0:00:13.7]} 41. Rxh5 {[%clk
0:01:18.7]} 41... Rb5 {[%clk 0:00:09.8]} 42. Rxh7 {[%clk 0:01:18.8]} 42... Rf5
{[%clk 0:00:10.4]} 43. Rh8 {[%clk 0:01:16.1]} 43... Kxa5 {[%clk 0:00:10.5]} 44.
Rb8 {[%clk 0:01:16.6]} 44... Ka6 {[%clk 0:00:09.9]} 45. Kh2 {[%clk 0:01:16.3]}
45... Rb5 {[%clk 0:00:08.3]} 46. Rf8 {[%clk 0:01:11.1]} 46... Rb7 {[%clk
0:00:08.2]} 47. Rc8 {[%clk 0:01:10.6]} 47... Kb6 {[%clk 0:00:08]} 48. Kg3 {[%clk
0:01:11.1]} 48... Rc7 {[%clk 0:00:08.4]} 49. Rd8 {[%clk 0:01:08.6]} 49... Kc6
{[%clk 0:00:08.7]} 50. Kf4 {[%clk 0:01:09.3]} 50... Rd7 {[%clk 0:00:09.1]} 51.
Re8 {[%clk 0:01:09.1]} 51... Kd6 {[%clk 0:00:09.1]} 52. Kf5 {[%clk 0:01:09.6]}
52... Re7 {[%clk 0:00:06.7]} 53. Ra8 {[%clk 0:01:10.2]} 53... Re2 {[%clk
0:00:05.2]} 54. g4 {[%clk 0:01:10.4]} 54... Ke7 {[%clk 0:00:04.8]} 55. Rb8
{[%clk 0:01:06.7]} 55... Rf2+ {[%clk 0:00:04.4]} 56. Kg5 {[%clk 0:01:06.4]}
56... Re2 {[%clk 0:00:04.9]} 57. Rb7+ {[%clk 0:01:06.9]} 57... Kf8 {[%clk
0:00:05.2]} 58. Kh5 {[%clk 0:01:05.4]} 58... Re5+ {[%clk 0:00:04.8]} 59. g5
{[%clk 0:01:03.5]} 59... f6 {[%clk 0:00:04.8]} 60. Kg6 {[%clk 0:01:03.8]} 60...
fxg5 {[%clk 0:00:03.3]} 61. Kf6 {[%clk 0:01:04.4]} 61... Re8 {[%clk 0:00:03.2]}
62. Rh7 {[%clk 0:01:04.5]} 62... Kg8 {[%clk 0:00:03.3]} 63. Rg7+ {[%clk
0:01:04.6]} 63... Kf8 {[%clk 0:00:03.7]} 64. Rh7 {[%clk 0:01:00.3]} 64... Kg8
{[%clk 0:00:04]} 65. Rg7+ {[%clk 0:01:00.8]} 65... Kf8 {[%clk 0:00:04.5]} 66.
Rxg5 {[%clk 0:01:01.7]} 66... Rc8 {[%clk 0:00:04.4]} 67. Rd5 {[%clk 0:01:00.4]}
67... Rc6+ {[%clk 0:00:04.6]} 68. Ke5 {[%clk 0:01:00.5]} 68... Ke7 {[%clk
0:00:05.5]} 69. Ra5 {[%clk 0:01:00.5]} 69... Re6+ {[%clk 0:00:05.8]} 70. Kf5
{[%clk 0:01:00.6]} 70... Rd6 {[%clk 0:00:06.7]} 71. Kg5 {[%clk 0:01:00.1]} 71...
Ke6 {[%clk 0:00:06.9]} 72. Ra8 {[%clk 0:00:59.7]} 72... Rd5+ {[%clk 0:00:07.2]}
73. Kf4 {[%clk 0:01:00.4]} 73... Rd7 {[%clk 0:00:07.6]} 74. Ke4 {[%clk
0:01:00.5]} 74... Kd6 {[%clk 0:00:08.5]} 75. Ra6+ {[%clk 0:00:59.9]} 75... Ke7
{[%clk 0:00:08.5]} 76. Ke5 {[%clk 0:01:00.4]} 76... Rb7 {[%clk 0:00:08.6]} 77.
Ra5 {[%clk 0:01:00.4]} 77... Rc7 {[%clk 0:00:08.7]} 78. Rd5 {[%clk 0:01:00.5]}
78... Rb7 {[%clk 0:00:09.1]} 79. Rc5 {[%clk 0:01:00.9]} 79... Rd7 {[%clk
0:00:09.4]} 80. Rc6 {[%clk 0:01:01.2]} 80... Rb7 {[%clk 0:00:09.8]} 81. Re6+
{[%clk 0:01:01.7]} 81... Kd7 {[%clk 0:00:10.3]} 82. Kf6 {[%clk 0:01:01.5]} 82...
Rc7 {[%clk 0:00:10.5]} 83. Ke5 {[%clk 0:01:01.5]} 83... Rc6 {[%clk 0:00:10.5]}
84. Rxc6 {[%clk 0:01:00]} 84... Kxc6 {[%clk 0:00:11.4]} 1/2-1/2